Cogmind - Beta 15 @@@ ROGUE MODE // 2025.07.26 @ 23:06:45 Player: bugsniper Result: Destroyed self with Grenade Launcher Performance ------------- Evolutions (0) 0 Regions Visited (2) 400 Robots Destroyed (24) 120 Value Destroyed (370) 370 Prototype IDs (3) 60 Alien Tech Used (0) 0 Bonus (0) 0 TOTAL SCORE: 950 Bonus ------- None Cogmind --------- Core Integrity 0/250 Matter 190/300 Energy 250/250 System Corruption 0% Temperature Cool (0) Movement Treading (160) Location -10/Subcaves Parts ------- > --- POWER (1) -------- Ion Engine > --- PROPULSION (2) --- Light Treads Light Treads > --- UTILITY (2) ------ Heat Sink Small Storage Unit > --- WEAPON (2) ------- Grenade Launcher Grenade Launcher > --- INVENTORY (8) ---- Light Treads Light Treads Spiked Treads Medium Laser Beam Cannon Subdweller Machine Gun Grenade Launcher Mining Claw Peak State ------------ > --- POWER ------------ Ion Engine > --- PROPULSION ------- Light Treads Light Treads > --- UTILITY ---------- Heat Sink Small Storage Unit > --- WEAPON ----------- Medium Laser Beam Cannon > --- INVENTORY -------- Light Treads Light Treads Spiked Treads Subdweller Machine Gun Grenade Launcher Grenade Launcher Grenade Launcher Mining Claw [Rating: 8] Favorites ----------- Power Light Ion Engine Engine Light Ion Engine Propulsion Light Treads Treads Light Treads Leg Aluminum Leg Utility Small Storage Unit Device Heat Sink Storage Small Storage Unit Weapon Medium Laser Energy Gun Medium Laser Energy Cannon Beam Cannon Launcher Grenade Launcher Build | -11 -10 -10 ------- Run | Yrd Mat Sub Slots Evolved . | . . . Power . | . . . Propulsion . | . . . Utility . | . . . Weapon . | . . . Parts Attached 11 | . 9 2 Power 3 | . 2 1 Engine 3 | . 2 1 Core . | . . . Reactor . | . . . Propulsion 2 | . 2 . Treads 2 | . 2 . Leg . | . . . Wheel . | . . . Hover . | . . . Flight . | . . . Utility 2 | . 2 . Device 2 | . 2 . Storage . | . . . Processor . | . . . Hackware . | . . . Protection . | . . . Artifact . | . . . Weapon 4 | . 3 1 Energy Gun 1 | . 1 . Energy Cannon 1 | . 1 . Ballistic Gun . | . . . Ballistic Cannon . | . . . Launcher 2 | . 1 1 Special Weapon . | . . . Impact Weapon . | . . . Slashing Weapon . | . . . Piercing Weapon . | . . . Special Melee Weapon . | . . . Unidentified Prototypes . | . . . Parts Lost . | . . . Power . | . . . Propulsion . | . . . Utility . | . . . Weapon . | . . . Highest Loss Streak . | . . . To Critical Strikes . | . . . Average Backups 7 | . 7 8 Power 1 | . 1 . Propulsion 2 | . 2 2 Utility . | . . . Weapon 3 | . 3 4 Tool/Special . | . . . Unused Backups 12 | . 6 6 Power . | . . . Propulsion 5 | . 2 3 Utility 1 | . 1 . Weapon 6 | . 3 3 Tool/Special . | . . . Average Slot Usage (%) 98 | . 98 100 Engine 13 | . 13 14 Treads 15 | . 10 28 Leg 12 | . 17 . Device 13 | . 12 14 Storage 14 | . 14 14 Energy Gun 17 | . 19 13 Energy Cannon 9 | . 8 13 Peak Build Rating 8 | . 7 8 Average Rating 6 | . 6 7 On Entrance 6 | 6 6 7 Naked Turns . | . . . Heaviest Build 16 | 12 16 16 Greatest Support 40 | 20 40 40 Greatest Overweight (x) . | . . . Average Overweight (x) . | . . . Largest Inventory Capacity 8 | . 8 8 Average Capacity 8 | . 8 8 Most Carried 8 | . 8 8 Average Carried 7 | . 7 7 Final Capacity 8 | 8 8 8 Final Carried 8 | 6 8 8 Class Distribution -------------------- 100% | Mutant Dominant Class ---------------- Mutant | -10/Materials Mutant | -10/Subcaves Resources | -11 -10 -10 ----------- Run | Yrd Mat Sub Matter Collected 350 | 200 150 . Remotely . | . . . Salvage Created 717 | . 659 58 Parts 41 | . 39 2 Haulers Intercepted 2 | . 2 . Recyclers Shooed 4 | . 4 . Parts Field Recycled . | . . . Retrieved Matter . | . . . Parts Self-Destructed . | . . . Prevented . | . . . Kills | -11 -10 -10 ------- Run | Yrd Mat Sub Combat Hostiles Destroyed 15 | . 12 3 Guns 4 | . 3 1 Cannons 4 | . 4 . AOE 7 | . 5 2 Classes Destroyed 7 | . 6 1 Worker 2 | . 2 . Builder 1 | . 1 . Hauler 2 | . 2 . Recycler 4 | . 4 . Swarmer 9 | . 9 . Grunt 3 | . 3 . Subdweller 3 | . . 3 Best Kill Streak 6 | . 6 2 Combat Bots Only 3 | . 3 2 Max Kills in Single Turn 3 | . 3 1 Gunslinging . | . . . Exploded 2 | . 2 1 Melee . | . . . Uniques/NPCs Destroyed . | . . . Combat | -11 -10 -10 -------- Run | Yrd Mat Sub Hostile Shots Fired 52 | . 40 12 Missed 9 | . 6 3 Hits 43 | . 34 9 Projectile 43 | . 34 9 Critical Strikes 1 | . 1 . Damage Taken 732 | . 345 387 Core 274 | . 80 194 Absorbed by Shields . | . . . Core Remaining (%) 100 | 100 . . Volleys Fired 50 | . 42 8 Largest 2 | . 2 2 Hottest 110 | . 110 110 Shots Fired 96 | . 80 16 Gun 50 | . 46 4 Cannon 34 | . 30 4 Launcher 12 | . 4 8 Special . | . . . Kinetic . | . . . Thermal 84 | . 76 8 Explosive 12 | . 4 8 Electromagnetic . | . . . Robot Hit Streak 11 | . 6 11 Robot Miss Streak 4 | . 4 1 Penetration Max . | . . . Secondary Targets . | . . . Shots Hit Robots 56 | . 43 13 Core Hits 32 | . 26 6 Critical Kills . | . . . Critical Parts Destroyed . | . . . Critical Strikes 2 | . 2 . Burn 2 | . 2 . Melee Attacks . | . . . Impact . | . . . Slashing . | . . . Piercing . | . . . Sneak Attacks . | . . . Combat Hostiles . | . . . Follow-up Attacks . | . . . Damage Inflicted 1587 | . 1063 524 Guns 347 | . 295 52 Cannons 351 | . 299 52 Explosions 889 | . 469 420 Melee . | . . . Ramming . | . . . Kinetic . | . . . Thermal 698 | . 594 104 Explosive 889 | . 469 420 Electromagnetic . | . . . Impact . | . . . Slashing . | . . . Piercing . | . . . Highest Corruption . | . . . Average Corruption . | . . . Corruption Purged . | . . . Corruption Blocked . | . . . Overload Shots . | . . . Overflow Damage 33 | . 33 . Projectiles . | . . . Explosions 33 | . 33 . Melee . | . . . Knockbacks . | . . . Impact . | . . . Kinetic . | . . . Secondary . | . . . Self-Inflicted Damage 187 | . . 187 Shots 8 | . . 8 Rammed . | . . . Targets Rammed . | . . . Kicked . | . . . Crushed . | . . . Highest Temperature 391 | . 391 . Average Temperature 88 | . 88 . Received Heat Transfer 120 | . 84 36 Effects 1 | . 1 . Shutdowns 1 | . 1 . Siege Activations . | . . . Martial Activations . | . . . Shielding Activations . | . . . Robots Disrupted . | . . . Combat Hostiles . | . . . Robots Corrupted . | . . . Combat Hostiles . | . . . Parts Fried . | . . . Impact Corruptions . | . . . Robots Melted . | . . . Combat Hostiles . | . . . Parts Melted 5 | . 3 2 Heat Transferred 1864 | . 1605 259 Parts Sabotaged . | . . . Parts Stolen . | . . . Parts Stripped . | . . . Power Chain Reactions . | . . . Alert | -11 -10 -10 ------- Run | Yrd Mat Sub Maximum Alert Level . | . . . Low Security (%) 100 | . 100 . Level 1 . | . . . Level 2 . | . . . Level 3 . | . . . Level 4 . | . . . Level 5 . | . . . High Security . | . . . Max Security . | . . . Peak Influence 183 | . 183 . Initial . | . . . Average 77 | . 77 . Influence Increases 419 | . 419 . Destroy 0b10 Robot/C 240 | . 240 . Destroy 0b10 Robot/NC 45 | . 45 . Destroy Leader 54 | . 54 . Successful Hack 13 | . 13 . Disable Machine 15 | . 15 . Destroy Structure 22 | . 22 . Lose Combat Pursuer 30 | . 30 . Influence Decreases 419 | . 284 135 Entered New Map 66 | . . 66 Time Decay 353 | . 284 69 Squads Dispatched 1 | . 1 . Investigation . | . . . Extermination . | . . . Reinforcement 1 | . 1 . Assault . | . . . Garrison . | . . . Intercept . | . . . Searches Triggered . | . . . Construction Impeded . | . . . Haulers Reinforced . | . . . Active Scanning Responses . | . . . Cargo Convoy Interrupts . | . . . Stealth | -11 -10 -10 --------- Run | Yrd Mat Sub Distress Signals . | . . . Communications Jammed . | . . . Distress Signals . | . . . Times Spotted 22 | . 19 3 Peak Tracking Total 6 | . 6 2 Tactical Retreats 1 | . 1 . Traps | -11 -10 -10 ------- Run | Yrd Mat Sub Traps Triggered . | . . . Indirectly . | . . . Trap Hack Attempts . | . . . Triggered . | . . . Disarmed . | . . . Reprogrammed . | . . . Reused . | . . . Traps Extracted . | . . . Installed . | . . . Triggered . | . . . Machines | -11 -10 -10 ---------- Run | Yrd Mat Sub Machines Disabled 1 | . 1 . Max in Single Turn 1 | . 1 . Machines Repaired . | . . . Machines Dismantled . | . . . Machines Sabotaged . | . . . Overloaded Fab Kills . | . . . Hacking | -11 -10 -10 --------- Run | Yrd Mat Sub Machines Accessed 4 | . 4 . Terminals 3 | . 3 . Fabricators . | . . . Repair Stations . | . . . Recycling Units 1 | . 1 . Scanalyzers . | . . . Garrison Access . | . . . Total Hacks 11 | . 11 . Successful 8 | . 8 . Failed 3 | . 3 . Catastrophic . | . . . Database Lockouts . | . . . Manual 2 | . 2 . Terminals 8 | . 8 . Fabricators . | . . . Repair Stations . | . . . Recycling Units 3 | . 3 . Scanalyzers . | . . . Garrison Access . | . . . Terminal Hacks 5 | . 5 . Prototype ID Bank 2 | . 2 . Dispatch Records 1 | . 1 . Maintenance Status 1 | . 1 . Zone Layout 1 | . 1 . Fabricator Hacks . | . . . Repair Station Hacks . | . . . Recycling Unit Hacks 1 | . 1 . Report Inventory 1 | . 1 . Scanalyzer . | . . . Garrison Access Hacks . | . . . Unauthorized Hacks 2 | . 2 . Terminals . | . . . Fabricators . | . . . Repair Stations . | . . . Recycling Units 2 | . 2 . Monitor 1 | . 1 . Recyclers 1 | . 1 . Scanalyzers . | . . . Garrison Access . | . . . Data Cores Recovered . | . . . Used . | . . . Hacking Detections 2 | . 2 . Full Trace Events . | . . . Feedback Events . | . . . Feedback Blocked . | . . . Robot Schematics Acquired . | . . . Robots Built . | . . . Authchips . | . . . Time . | . . . Total Robot Build Rating . | . . . Part Schematics Acquired . | . . . Parts Built . | . . . Authchips . | . . . Time . | . . . Total Part Build Rating . | . . . Parts Repaired . | . . . Time . | . . . Parts Recycled . | . . . Recycled Matter . | . . . Retrieved Matter . | . . . Retrieved Components . | . . . Parts Scanalyzed . | . . . Part Schematics Acquired . | . . . Parts Damaged . | . . . Bothacking | -11 -10 -10 ------------ Run | Yrd Mat Sub Used RIF Installer . | . . . Robots Hacked . | . . . Non-combat . | . . . Combat . | . . . Robot Hacks Applied . | . . . Relay Couplers Released . | . . . Fabnet Peak Effective % . | . . . Robots Rewired . | . . . Allies Hacked . | . . . Hacks Repelled . | . . . Allies | -11 -10 -10 -------- Run | Yrd Mat Sub Total Allies . | . . . Largest Group . | . . . Highest-Rated Group . | . . . Highest-Rated Ally . | . . . Total Orders . | . . . Ally Attacks . | . . . Total Damage . | . . . Kills . | . . . Allies Corrupted . | . . . Allies Melted . | . . . Intel | -11 -10 -10 ------- Run | Yrd Mat Sub Active Infowar (turns) 283 | . 283 . Terrain 283 | . 283 . Robot Analysis Total . | . . . Derelict Logs Recovered 1 | . . 1 Drone Launches . | . . . Drone Recoveries . | . . . Exploration | -11 -10 -10 ------------- Run | Yrd Mat Sub Turns Passed 1143 | . 782 361 Spaces Moved 635 | 1 436 198 Core . | . . . Treads 338 | . 140 198 Legs 297 | 1 296 . Wheels . | . . . Hover . | . . . Flight . | . . . Fastest Speed 120 | 120 120 160 Average Speed 141 | 120 132 160 Slowest Speed 160 | 120 160 160 Overloaded Moves . | . . . Propulsion Burnouts . | . . . Robots Hopped . | . . . Potential Cave-ins . | . . . Cave-ins Triggered . | . . . Exploration Rate (%) 29 | 2 70 15 Regions Visited 2 Branch Regions 1 Pre-discovered Areas . | . . . Known Exits Taken . | . . . Unknown Exits Taken 2 | 1 1 . Scrap Searched 1 | . . 1 Spaces Dug 7 | . . 7 Terrain Destroyed 32 | . 22 10 Melee . | . . . Projectile . | . . . AOE 32 | . 22 10 Terrain Rammed . | . . . Walls Destroyed . | . . . Machines Disabled . | . . . Actions | -11 -10 -10 --------- Run | Yrd Mat Sub Total 788 | . 559 229 Wait 68 | . 54 14 Move 633 | . 435 198 Hop . | . . . Pick Up 11 | . 8 3 Fast Attach 3 | . 3 . Attach 3 | . 3 . Detach 1 | . 1 . Swap 8 | . 5 3 Drop 11 | . 8 3 Fire 50 | . 42 8 Melee . | . . . Ram . | . . . Kick . | . . . Crush . | . . . Escape Stasis . | . . . Rewire . | . . . Trap . | . . . Miscellaneous . | . . . Route ------- -11/Scrapyard -10/Materials (discovered 5 exits: [*Mat x2] / [*Min x2] / [*Sub]) -10/Subcaves History --------- Turn | Location | Event 1 | -11/Scrapyard | Discovered new exit (range 0) 1 | -11/Scrapyard | Entered Materials 305 | -10/Materials | Build established: Mutant 423 | -10/Materials | Discovered new exit (range 9) 520 | -10/Materials | Discovered new exit (range 14) 626 | -10/Materials | Discovered new exit (range 10) 639 | -10/Materials | Discovered new exit (range 10) 762 | -10/Materials | Discovered new exit (range 9) 783 | -10/Materials | Entered Subcaves 813 | -10/Subcaves | Disturbed a concealed Subdweller 866 | -10/Subcaves | Learned 8 Materials zone layouts 1029 | -10/Subcaves | Shifting Twisted Machinery released Spk. Treads 1037 | -10/Subcaves | Shifting Twisted Machinery released Sub. Machine Gun 1134 | -10/Subcaves | Core integrity fell below 50% 1142 | -10/Subcaves | Core integrity fell below 20% 1144 | -10/Subcaves | Destroyed self with Grenade Launcher Last Messages --------------- 00820_ Sub. Monowheel melted. 00820_ VD-9KF(R) destroyed. 00827_ Subatomizers dissect the Sub. Beam Cannon. 00866_ Acquired derelict log, extracted data. Data stored: Materials zone layouts (x8). 00928_ 0Y-GGM(u) builds Twisted Machinery. Spk. Treads falls loose from the Twisted Machinery. Sub. Machine Gun falls loose from the Twisted Machinery. 01040_ Dropped Lgt. Ion Engine. 01041_ Acquired Spk. Treads. 01043_ Dropped Terrain Scanner. 01044_ Acquired Lgt. Ion Engine. 01083_ Dropped Lgt. Ion Engine. 01084_ Acquired Sub. Machine Gun. 01138_ 1I-75B(R) destroyed. 01141_ Destroyed Scrap Shield. 01144_ T2-HYY(R) destroyed. Map ----- +----------------------------------------------------+ | | | | | | | | | ?????????????????????????????????????????????????? | | ?????????????????????????????????????????????????? | | ?????????????????????????????????????????????????? | | ?????????????????????????????????????????????????? | | ?????????????????????????????????????????????????? | | ?????????????????????????????????????????????????? | | ?????????????????????????????????????????????????? | | ?????????????????????????????????????????????????? | | ?????????????????????????????????????????????????? | | ?????????????????????????????????????????????????? | | ?????????????????#???????????????????????????????? | | ?????????????????# ???###????????????????????????? | | ?????????????????? ##?# #????????????????????????? | | ???????????????###? ## #????????????????????????? | | ##?????????????# ### ##???????????????????????? | | ############### ##??????????????????????? | | # # ## ####???????????????????? | | ### ??????????? | | ??????????? | | # # # #??????????? | | #### ### # & & # #??????????? | | ???## ### @ ##????????????????????? | | ????## ##### ##???????????????????? | | ?##??###?## #???????????????????? | | ? ##?????# ### ##???????????????????? | | ####??# ## #??##????????????????????? | | #?## #### ##????????????????????????? | | #?# #??## ##????????????????????????? | | ??# ##?# ##???????????????????????? | | ??## ### "#???????????????????????? | | ##?????# "##???????????????????????? | | ##????#####" """"##????????????????????????? | | #????????##" """##?????????????????????????? | | #?????????#""! ####??????????????????????????? | | #????????## "" "#???#????????????????????????? | | #????????# "#"" ###"####?????????????????????? | | #######?? """"""""" *" ""#?????????????????????? | | #"!&%"#?? """###"" "# ## ##?????????????????????? | | #]%&#&#??#"""??#""" "#?#?????????????????????????? | | #### #????????#" """""""????????????????????????? | | ###" ##????????#####"##""????????????????????????? | | # ## ##????????????###??#????????????????????????? | | " "#?##???????????????????????????????????????? | | ## #???????????????????????????????????????? | | # #???????????????????????????????????????? | | ## #???????????????????????????????????????? | +----------------------------------------------------+ Best States ------------- Heat Dissipation 35 Energy Generation 10 Energy Capacity 250 Matter Stores 300 Matter Capacity 300 Sight Range 16 Terrain Scan Range 14 Terrain Scan Density 10 Evasion (%) 55 Recoil Reduction 2 Item Schematics ----------------- None Robot Schematics ------------------ None Fabricated ------------ Nothing Repaired ---------- Nothing Alien Tech Used ----------------- None Achievements -------------- None Challenges ------------ None Game ------ Seed PlexusUltimateMediator Manual? 0 Play Time 00:10:54 Cumulative 416.2 hours Start 2025.07.26 @ 22:58:14 End 2025.07.26 @ 23:06:45 Sessions 1 Manual Loads 0 Difficulty Rogue Special Mode None Game No. 229 Rogue 229 Adventurer 0 Explorer 0 Win Type - Total 11 Types 10/0/1/0/0/0/0/0/0/0 Lore% 43 Gallery% 63 Achievement% 52 Wizard Run 0 Options --------- Layout 1 ASCII 0 Keyboard 0 Movement Numpad Keybinds 0 Fullscreen 1 Font 24/Smallcaps Map View 50x35 Zoom Use 0% Tactical HUD 1 Map Filters NONE Filters NONE Steam 1 RUN: 72157f70-5a59-41c5-95dc-5385750579b4